[Event "American Cup Open Elimination 2024"]
[Site "Saint Louis"]
[Date "2024.03.18"]
[Round "4.4"]
[White "So, Wesley"]
[Black "Robson, Ray"]
[Result "1-0"]
[ECO "A08"]
[WhiteElo "2789"]
[BlackElo "2696"]
[Annotator "TA"]
[PlyCount "69"]
[EventDate "2024.03.11"]
[EventType "k.o."]
[EventCountry "USA"]
[SourceTitle "playchess.com"]
[Source "ChessBase"]
[SourceQuality "1"]
[TimeControl "900+10"]

{[%evp 19,69,0,42,41,20,20,89,95,63,92,81,78,97,54,68,52,118,95,153,146,145,137,159,170,160,157,160,164,170,171,356,351,654,654,536,530,660,650,915,898,1492,1446,2272,2049,5036,2452,29976,29977,29977,29973,29937,11183]} 1. Nf3 {[%emt 0:00:09]} d5 {[%emt 0:00:04]} 2. g3 {[%emt 0:00:01]} c5 {[%emt 0:00:48]} 3. Bg2 {[%emt 0:00:04]} Nf6 {[%emt 0:00:10]} 4. O-O {[%emt 0:00:03]} g6 {[%emt 0:00:06]} 5. d3 {[%emt 0:00:14][%cal Bd2d3,Bd3e4,Be4e5,Be5e6][%mdl 32]} Bg7 {[%emt 0:00:19]} 6. Nbd2 {[%emt 0:00:36]} Nc6 {[%emt 0:01:26]} 7. e4 {[%emt 0:00:03]} O-O {[%emt 0:01:35]} 8. Re1 {[%emt 0:00:01]} b6 {[%emt 0:00:39]} 9. c3 {[%emt 0:00:36]} dxe4 {[%emt 0:00:54]} 10. dxe4 {[%emt 0:00:09]} Ng4 {[%emt 0:01:55] [#]} 11. e5 $1 {[%emt 0:01:09]} Rb8 {[%emt 0:01:01]} (11... Bxe5 $2 12. h3 $18 (12. Rxe5 Ncxe5 13. Nxe5 Nxe5 $18)) 12. e6 {[%emt 0:00:08]} f5 {[%emt 0:01:01] [#]} (12... fxe6 $11 {keeps the balance.} 13. Qa4 Nge5) 13. Ng5 $1 $16 {[%emt 0:00:41] White is better.} Nce5 {[%emt 0:01:25][%cal Og4f2]} 14. h3 {[%emt 0:00:28]} Nh6 {[%emt 0:00:07]} 15. Ndf3 {[%emt 0:03:02]} Nd3 {[%emt 0:00:24][%cal Oc8b7] Inhibits Bf4.} 16. Bf4 {[%emt 0:00:44]} Nxf4 {[%emt 0:00:20]} 17. gxf4 {[%emt 0:00:02]} Bb7 {[%emt 0:01:57] White stays focused until the end.} (17... Qc7 $14) 18. Qd7 $36 {[%emt 0:00:37][%mdl 2048] White has strong initiative.} Bxf3 {[%emt 0:00:39]} ({Black should try} 18... Bf6) 19. Bxf3 {[%emt 0:00:32]} Bf6 {[%emt 0:00:47] Black is weak on the light squares} 20. Rad1 {[%emt 0:00:02][%cal Ba1d1,Bd1d7,Bd7a7,Ba7e7][%mdl 32]} (20. Qxa7 $6 Qd6 $15) 20... b5 {[%emt 0:00:26]} 21. Qxa7 {[%emt 0:00:05] White is much more active.} Qb6 {[%emt 0:00:07]} 22. Rd7 {[%emt 0:00:59] aiming for Rxe7.} Qxa7 {[%emt 0:00:24]} 23. Rxa7 {[%emt 0:00:02]} b4 {[%emt 0:00:15] [#]} 24. c4 $1 {[%emt 0:01:25]} b3 $2 {[%emt 0:00:11]} (24... Kg7 {might work better.} 25. Bd5 Ng8) 25. a4 $18 {[%emt 0:00:01][%cal Ba2a4,Ba4a5][%mdl 32]} Bxb2 $2 {[%emt 0:01:08]} (25... Kg7 26. Bd5 Ng8) 26. Rxe7 {[%emt 0:00:02]} Bf6 {[%emt 0:00:16]} 27. Rd7 {[%emt 0:00:51]} (27. Rxh7 Bxg5 28. Rb7 Rxb7 (28... Bxf4 $2 {is the wrong capture.} 29. e7 $16) 29. Bxb7 Bf6 $11 (29... Bxf4 $2 30. e7 $18)) 27... b2 {[%emt 0:00:20]} 28. Rb1 {[%emt 0:00:05]} (28. Nxh7 b1=Q (28... b1=B $2 {loses.} 29. Bd5 $18) 29. Rxb1 Rxb1+ 30. Kg2 Bh4 31. Nxf8 Kxf8 $11) 28... Rfd8 {[%emt 0:00:23]} 29. a5 {[%emt 0:00:24]} Rxd7 {[%emt 0:00:27]} 30. exd7 {[%emt 0:00:02] And now a6 would win.} Rb3 {[%emt 0:00:12]} 31. Bd5+ {[%emt 0:00:09]} Kh8 {[%emt 0:00:10]} 32. a6 {[%emt 0:00:11] Intending a7 and mate.} Ra3 {[%emt 0:00:23] [#]} 33. Rxb2 $3 {[%emt 0:00:04][%mdl 512] White mates.} Rxa6 {[%emt 0:00:08]} 34. Rb8+ {[%emt 0:00:03]} Kg7 {[%emt 0:00:01]} 35. Ne6+ {[%emt 0:00:17] Weighted Error Value: White=0.03 (flawless) /Black=0.60.  Mistake:       	---       	Black=5      Inaccurate:     	White=1     	Black=1      OK:         	White=6     	Black=8      Best:        	White=3     	---        Strong:       	White=2     	---} 1-0

[Event "American Cup Open Elimination 2024"]
[Site "Saint Louis"]
[Date "2024.03.18"]
[Round "4.5"]
[White "So, Wesley"]
[Black "Robson, Ray"]
[Result "1-0"]
[ECO "D00"]
[WhiteElo "2789"]
[BlackElo "2696"]
[Annotator "TA"]
[PlyCount "87"]
[EventDate "2024.03.11"]
[EventType "k.o."]
[EventCountry "USA"]
[SourceTitle "playchess.com"]
[Source "ChessBase"]
[SourceQuality "1"]
[TimeControl "600+5"]

{[%evp 9,87,-22,-3,-16,-8,-10,40,42,50,47,41,31,61,54,95,66,68,75,87,48,60,56,46,35,68,43,47,29,40,35,42,52,34,35,39,42,54,27,122,60,136,91,129,129,218,246,222,33,30,84,95,-167,-116,-283,-256,-597,-585,-727,-727,-689,-22,-8,184,177,216,213,220,206,245,254,1051,1027,5189,5181,29990,29991,29991,29992,29992,29993]} 1. d4 {[%emt 0:07:07]} Nf6 {[%emt 0:07:07]} 2. Nc3 {[%emt 0:00:04]} d5 {[%emt 0:00:05]} 3. Bf4 {[%emt 0:00:04]} a6 {[%emt 0:00:08]} 4. e3 {[%emt 0:00:05]} e6 {[%emt 0:00:08]} 5. Nf3 {[%emt 0:00:11]} b5 {[%emt 0:00:08]} 6. Ne5 {[%emt 0:00:25]} Bb7 {[%emt 0:00:25]} 7. Nd3 {[%emt 0:00:08]} b4 {[%emt 0:00:35]} ({Black should try} 7... Nbd7 $11) 8. Na4 $14 {[%emt 0:00:06] White is slightly better.} Nbd7 {[%emt 0:00:07]} 9. Be2 {[%emt 0:00:12]} a5 {[%emt 0:00:10]} 10. O-O {[%emt 0:00:06]} Bc6 {[%emt 0:00:24]} 11. c3 {[%emt 0:00:10]} bxc3 {[%emt 0:00:12]} 12. Nxc3 {[%emt 0:00:31]} Bd6 {[%emt 0:00:19]} 13. Ne5 {[%emt 0:00:05]} Bb7 {[%emt 0:00:07]} 14. Nb5 {[%emt 0:00:12][%cal Oe5f7] Black must now prevent Nxf7!} O-O {[%emt 0:00:08]} 15. Rc1 {[%emt 0:00:05]} Bxe5 {[%emt 0:00:29]} 16. dxe5 {[%emt 0:00:14]} Ne8 {[%emt 0:00:04][%cal Bf6e8,Be8c7,Bc7a6,Ba6b4][%mdl 32]} 17. a4 {[%emt 0:00:10]} c6 {[%emt 0:00:05]} 18. Nd4 {[%emt 0:00:05]} c5 {[%emt 0:00:26][%cal Og7g5] aiming for ...g5!} 19. Nb5 {[%emt 0:00:04]} Nc7 {[%emt 0:00:16]} 20. Nd6 {[%emt 0:00:34]} Ba6 {[%emt 0:00:04]} 21. Bxa6 {[%emt 0:00:04]} Nxa6 {[%emt 0:00:10]} 22. e4 {[%emt 0:00:06]} Nb4 {[%emt 0:00:08]} 23. Rc3 {[%emt 0:00:09]} c4 {[%emt 0:00:08]} (23... Qe7 $11 {remains equal.}) 24. Rh3 $1 $16 {[%emt 0:00:12]} g6 {[%emt 0:00:08] Prevents Qh5} (24... Nd3 $1 $14 25. Qh5 h6 (25... Nxf4 26. Qxh7#) 26. Bxh6 g6) 25. exd5 {[%emt 0:00:11]} exd5 {[%emt 0:00:04]} 26. Qg4 $1 {[%emt 0:00:13] Threatens to win with Bg5. White is much more active.} Qe7 {[%emt 0:00:06]} (26... Ra7 $16 {is a better defense.} 27. e6 Nf6 28. exf7+ Raxf7 29. Nxf7 Nxg4 30. Nxd8 Rxf4) 27. Nf5 $18 {[%emt 0:00:18]} Qe6 {[%emt 0:00:04] [#]} 28. Qh4 $2 {[%emt 0:00:06]} h5 $14 {[%emt 0:00:04] [#]} 29. g4 $40 {[%emt 0:00:25][%mdl 128] White goes for the king.} Nd3 {[%emt 0:00:05] [#]} (29... gxf5 30. Qxh5 (30. gxh5 $2 Kh7 $19) (30. gxh5 $2 Kh7 $19)) 30. Bh6 {[%emt 0:00:09][%mdl 8192] The board is on fire.} (30. Be3 $1 $16 {stays on course.} N7xe5 (30... gxf5 31. Qxh5) 31. Nh6+ (31. Ne7+ Kh7 $15) 31... Kg7 32. f4) 30... gxf5 $19 {[%emt 0:00:05]} 31. Bxf8 {[%emt 0:00:05]} (31. Qxh5 $17 Qg6 (31... fxg4 32. Bg7 f5 33. Bf6 Rxf6 34. Qh8+ Kf7 35. Rh7+ Kg6 36. Qg7#) 32. Bxf8 Qxh5 33. Rxh5 Rxf8 34. gxf5) 31... fxg4 {[%emt 0:00:06] White is weak on the light squares} (31... Nxf8 $2 32. Qxh5 Qxe5 (32... Nxb2 33. Qh8#) 33. gxf5 $16) 32. Rg3 {[%emt 0:00:06]} (32. Qg5+ {was the crucial defense.} Kxf8 33. Rxh5) 32... Rxf8 {[%emt 0:00:06]} 33. Qxh5 {[%emt 0:00:04]} N7xe5 {[%emt 0:00:05][%cal Oe6g6] And now ...Qg6! would win.} ({Not} 33... N3xe5 34. f4 Qb6+ 35. Kh1 $17) 34. f4 {[%emt 0:00:04]} Qg6 $2 {[%emt 0:00:06]} (34... Qb6+ $19 35. Kh1 Qg6) 35. Qh4 $11 {[%emt 0:00:05] [#]} Qe4 $2 {[%emt 0:00:05]} 36. fxe5 $18 {[%emt 0:00:05]} Qd4+ {[%emt 0:00:04]} 37. Kh1 {[%emt 0:00:04]} Qe4+ {[%emt 0:00:04]} 38. Rg2 {[%emt 0:00:04]} Nxe5 {[%emt 0:00:04][%cal Of7f6]} 39. Qg5+ {[%emt 0:00:04]} Kh7 $2 {[%emt 0:00:06]} (39... Ng6 40. Qxg4 Re8) 40. Rf4 {[%emt 0:00:06]} Qe3 {[%emt 0:00:05]} 41. Qh4+ {[%emt 0:00:08]} Kg7 {[%emt 0:00:07]} 42. Rgxg4+ {[%emt 0:00:05] White mates.} Ng6 {[%emt 0:00:04]} 43. Qf6+ {[%emt 0:00:04]} Kh7 {[%emt 0:00:05] [#]} 44. Rxg6 $1 {[%emt 0:00:04][%mdl 512] Weighted Error Value: White=0.42/Black=0.50.  Loses game:     	White=2     	---        Missed win:     	White=1     	---        Mistake:       	White=1     	Black=5      Inaccurate:     	White=3     	Black=5      OK:         	White=10    	Black=12     Best:        	White=6     	Black=2      Strong:       	White=2     	---} 1-0

[Event "American Cup Open Elimination 2024"]
[Site "Saint Louis"]
[Date "2024.03.18"]
[Round "4.6"]
[White "Robson, Ray"]
[Black "So, Wesley"]
[Result "0-1"]
[ECO "D27"]
[WhiteElo "2696"]
[BlackElo "2789"]
[Annotator "TA"]
[PlyCount "93"]
[EventDate "2024.03.11"]
[EventType "k.o."]
[EventCountry "USA"]
[SourceTitle "playchess.com"]
[Source "ChessBase"]
[SourceQuality "1"]
[TimeControl "600+5"]

{[%evp 25,93,37,31,15,17,15,21,11,22,14,27,29,45,22,52,26,53,45,57,24,77,79,80,17,42,0,0,0,0,0,25,32,28,34,22,28,44,45,67,43,47,29,47,38,46,8,8,0,0,0,0,0,0,0,0,0,18,0,0,0,0,-31,0,-31,-31,-587,-31,-1757,-1560,-1403]} 1. d4 {[%emt 0:07:07]} d5 {[%emt 0:07:06]} 2. c4 {[%emt 0:00:03]} dxc4 {[%emt 0:00:04]} 3. Nf3 {[%emt 0:00:06]} Nf6 {[%emt 0:00:04]} 4. e3 {[%emt 0:00:04]} e6 {[%emt 0:00:04]} 5. Bxc4 {[%emt 0:00:05]} c5 {[%emt 0:00:03]} 6. O-O {[%emt 0:00:06]} Nc6 {[%emt 0:00:04]} 7. a3 {[%emt 0:00:10]} a6 {[%emt 0:00:09]} 8. dxc5 {[%emt 0:00:05]} Qxd1 {[%emt 0:00:06]} 9. Rxd1 {[%emt 0:00:04]} Bxc5 {[%emt 0:00:04]} 10. b4 {[%emt 0:00:11]} Be7 {[%emt 0:00:07]} 11. Bb2 {[%emt 0:00:06]} O-O {[%emt 0:00:06]} 12. Nbd2 {[%emt 0:00:05][%cal Bb1d2,Bd2b3,Bb3a5][%mdl 32]} b5 {[%emt 0:00:11]} 13. Be2 {[%emt 0:00:09]} Bb7 {[%emt 0:00:05]} 14. Nb3 {[%emt 0:00:25]} Rfd8 {[%emt 0:00:12]} 15. Nfd4 {[%emt 0:00:08]} Nxd4 {[%emt 0:00:16]} 16. Bxd4 {[%emt 0:00:06] The position is equal.} Bd5 {[%emt 0:00:05]} 17. Na5 {[%emt 0:00:10]} Rac8 {[%emt 0:00:06]} 18. f3 {[%emt 0:00:21]} Ba8 {[%emt 0:00:11]} 19. e4 {[%emt 0:00:21]} h6 {[%emt 0:00:18]} 20. Kf1 {[%emt 0:00:15][%cal Od4c5]} g5 {[%emt 0:00:07]} 21. Nb3 {[%emt 0:00:14]} Nd7 {[%emt 0:00:10]} 22. Rd2 {[%emt 0:00:11]} f5 {[%emt 0:00:07]} (22... f6 $11 {keeps the balance.}) 23. exf5 $16 {[%emt 0:00:10]} exf5 {[%emt 0:00:04]} 24. Rad1 {[%emt 0:00:05]} ({Better is} 24. Bd3 $16 {[%cal Oa1e1] Strongly threatening Re1!} Bd5 25. Nc1) 24... Kf7 {[%emt 0:00:27]} 25. Bd3 {[%emt 0:00:09]} Bd5 {[%emt 0:00:08][%cal Ba8d5,Bd5e6,Be6f5][%mdl 32]} 26. Na5 {[%emt 0:00:05]} Be6 {[%emt 0:00:17]} 27. Bb1 {[%emt 0:00:26]} Ne5 {[%emt 0:00:17]} 28. Bxf5 {[%emt 0:00:26]} Bxf5 {[%emt 0:00:05]} 29. Bxe5 {[%emt 0:00:03]} Rxd2 {[%emt 0:00:38]} 30. Rxd2 {[%emt 0:00:04]} Rc1+ {[%emt 0:00:04]} 31. Kf2 {[%emt 0:00:05]} Ke6 {[%emt 0:00:04]} 32. Bd4 {[%emt 0:00:20]} h5 {[%emt 0:00:14]} 33. Nb7 {[%emt 0:00:12]} Rc2 {[%emt 0:00:12]} 34. Rxc2 {[%emt 0:00:06]} Bxc2 $14 {[%emt 0:00:04][%mdl 4096] Endgame. KBB-KBN} 35. Ke3 {[%emt 0:00:09]} Kd5 {[%emt 0:00:07]} 36. g3 {[%emt 0:00:08]} g4 {[%emt 0:00:06]} 37. f4 {[%emt 0:00:04]} Bf5 {[%emt 0:00:09]} 38. Na5 {[%emt 0:00:08]} Bc2 {[%emt 0:00:05]} 39. Bc3 {[%emt 0:00:04]} h4 {[%emt 0:00:08]} 40. Kd2 {[%emt 0:00:05]} Ba4 {[%emt 0:00:13]} 41. Ke2 {[%emt 0:00:05]} Bc2 {[%emt 0:00:05]} 42. Ke3 {[%emt 0:00:05]} h3 {[%emt 0:00:06]} 43. Be5 {[%emt 0:00:05]} Bd8 {[%emt 0:00:06]} (43... Bh4 $5 44. Kf2 (44. gxh4 $2 g3 $19) 44... Bd8 $11) 44. Nb7 {[%emt 0:00:05]} (44. Bd4 $5) 44... Bb6+ {[%emt 0:00:03]} 45. Kd2 $2 {[%emt 0:00:04][%mdl 8192] [#]} (45. Ke2 $15) 45... Bg1 $2 {[%emt 0:00:11]} ({Black should try} 45... Bf2 $1 $19 {[%cal Rf2g3] White must now prevent ...Bxg3!} 46. Kxc2 Bxg3) 46. Kxc2 $4 {[%mdl 8192]} (46. Ke2 $15) 46... Bxh2 $19 {[%emt 0:00:05]} 47. Bb8 {[%emt 0:00:03] Weighted Error Value: White=0.49/Black=0.40.  Loses game:     	White=2     	---        Missed win:     	---       	Black=1      Mistake:       	White=1     	Black=1      Inaccurate:     	White=6     	Black=3      OK:         	White=8     	Black=13     Best:        	White=2     	Black=2} 0-1